Cogmind - Beta 10.1 @@@ ROGUE MODE // 2020.10.17 @ 16:18:39 Player: Boris Result: Destroyed by G-67 Veteran with Electrolaser Performance ------------- Evolutions (7) 3500 Regions Visited (31) 6200 Robots Destroyed (589) 2945 Value Destroyed (27066) 27066 Prototype IDs (94) 1880 Alien Tech Used (0) 0 Bonus (15488) 15488 TOTAL SCORE: 57079 Bonus ------- Triggered High Security 1000 High Alert Combat Kills 9086 Follower Combat Kills 2157 Network Hubs Disabled 400 Met Data Miner 300 Destroyed Z-Imprinter 1000 Exposed GOLEM Chamber 500 Met Warlord at Base 500 MAIN.C Attacked Warlord 500 Warlord Defense Kill 492 A7 Reached Mainframe 300 Friendly Fire -747 Cogmind --------- Core Integrity 0/1300 Matter 264/300 Energy 43/100 System Corruption 45% Temperature Cool (9) Movement Core (50) Location -3/Armory Parts ------- > --- POWER (2) -------- (None) > --- PROPULSION (3) --- (None) > --- UTILITY (13) ----- Advanced Heat Sink Advanced Visual Processing Unit > --- WEAPON (3) ------- CR-A16's Behemoth Slayer > --- INVENTORY (4) ---- Zionite Biocell (0) GOLEM Unit Enhanced Quantum Rifle Peak State ------------ > --- POWER ------------ Vortex Chain Reactor > --- PROPULSION ------- Experimental Myomer Leg Experimental Myomer Leg Assembled Alloy Leg > --- UTILITY ---------- Assembled Nanovents Assembled Nanovents Assembled Nanovents Assembled Biocell Array Assembled Suspension Frame Assembled Suspension Frame Advanced Signal Interpreter Assembled Combat Suite Centrium Medium Armor Plating Assembled Alloy Armor System Mapper GOLEM Unit > --- WEAPON ----------- Assembled Focal Cannon Assembled Focal Cannon Assembled Focal Cannon > --- INVENTORY -------- GOLEM Unit Vortex Rifle Improved Proton Missile Launcher [Rating: 184] Favorites ----------- Power Assembled Flux Generator Engine Improved Deuterium Engine Power Core Light Fission Core Reactor Assembled Flux Generator Propulsion Assembled Alloy Leg Treads Armored Treads Leg Assembled Alloy Leg Flight Unit Improved Flight Unit Utility Large Storage Unit Device Assembled Nanovents Storage Large Storage Unit Processor Advanced Signal Interpreter Hackware System Mapper Protection Improved Light Armor Plating Weapon Assembled Focal Cannon Energy Gun Heavy EM Shotgun Energy Cannon Assembled Focal Cannon Ballistic Gun Enhanced Autogun Ballistic Cannon Heavy Flak Cannon Launcher Missile Launcher Special Weapon Plasma Cutter Slashing Weapon Longsword +1 Piercing Weapon CR-A16's Behemoth Slayer Build | -11 -10 -10 -9 -9 -9 -8 -8 -8 -7 -7 -7 -7 -6 -6 -6 -6 -6 -6 -5 -5 -5 -5 -5 -5 -4 -4 -4 -4 -3 -3 -3 ------- Run | Scr Mat Min Mat Min Exi Min Mat Sto Fac Low Low Dat Pro Fac Low Low Zio Dee Pro Fac Ext Cet Arc Hub Fac Upp Upp War Pro Res Arm Slots Evolved 14 | . . . 2 . . . 2 . 2 . . . . 2 . . . . . 2 . . . . 2 . . . . 2 . Power 1 | . . . . . . . . . . . . . . 1 . . . . . . . . . . . . . . . . . Propulsion 1 | . . . . . . . . . . . . . . 1 . . . . . . . . . . . . . . . . . Utility 11 | . . . 1 . . . 2 . 2 . . . . . . . . . . 2 . . . . 2 . . . . 2 . Weapon 1 | . . . 1 . . . . . . . . . . . . . . . . . . . . . . . . . . . . Parts Attached 583 | 6 7 8 49 4 3 10 38 59 6 14 35 7 18 92 9 13 13 30 7 18 14 6 1 16 12 3 1 7 2 9 66 Power 34 | 1 . 1 5 . . . 1 2 . 1 . . . 7 2 2 1 4 . . . . . . . . . 1 . . 6 Engine 22 | 1 . 1 4 . . . 1 2 . 1 . . . 6 2 2 1 1 . . . . . . . . . . . . . Core 2 | . . . 1 . . . . . . . . . . . . . . 1 . . . . . . . . . . . . . Reactor 10 | . . . . . . . . . . . . . . 1 . . . 2 . . . . . . . . . 1 . . 6 Propulsion 61 | 2 . 2 8 . . . 2 5 . . 1 2 1 17 2 1 1 3 . . 1 . . . 3 . . 2 . 1 7 Treads 46 | 2 . 2 8 . . . 2 4 . . 1 1 1 15 2 1 1 2 . . . . . . . . . . . . 4 Leg 14 | . . . . . . . . . . . . 1 . 2 . . . 1 . . 1 . . . 3 . . 2 . 1 3 Wheel . | . . . . . . . . . . . . . . . . . . . . . . . . . . . . . . . . Hover . | . . . . . . . . . . . . . . . . . . . . . . . . . . . . . . . . Flight 1 | . . . . . . . . 1 . . . . . . . . . . . . . . . . . . . . . . . Utility 252 | 1 2 . 7 . 2 3 19 23 4 8 18 3 5 37 1 7 8 16 7 18 10 3 1 15 3 3 . . . 7 21 Device 108 | . . . 2 . . 1 7 9 3 3 9 2 3 14 1 3 2 7 5 8 7 1 . 8 . 1 . . . 2 10 Storage 20 | 1 2 . 2 . 2 1 1 . . 1 . . . 4 . . . 2 2 1 . . . . . . . . . 1 . Processor 9 | . . . . . . . 2 . . . . . . . . . 3 . . 1 . . . . . . . . . . 3 Hackware 2 | . . . . . . . . . . . . . . . . . 1 . . . . . . . 1 . . . . . . Protection 113 | . . . 3 . . 1 9 14 1 4 9 1 2 19 . 4 2 7 . 8 3 2 1 7 2 2 . . . 4 8 Artifact . | . . . . . . . . . . . . . . . . . . . . . . . . . . . . . . . . Weapon 236 | 2 5 5 29 4 1 7 16 29 2 5 16 2 12 31 4 3 3 7 . . 3 3 . 1 6 . 1 4 2 1 32 Energy Gun 49 | 1 3 1 7 . . . 1 3 . 1 7 1 2 10 1 . 2 3 . . . . . . . . . 3 . . 3 Energy Cannon 37 | . . . 10 2 1 3 5 3 . . . . 1 1 . 1 . 1 . . 1 . . . . . . . . . 8 Ballistic Gun 77 | 1 1 1 10 1 . 2 9 14 2 2 6 . 5 11 1 1 1 1 . . 1 1 . . 2 . . . . . 4 Ballistic Cannon 2 | . . . . . . . . . . . . . . . . . . . . . . . . . . . . . . . 2 Launcher 52 | . 1 3 2 1 . 2 . 3 . 2 3 . 3 5 1 1 . 2 . . . 2 . 1 4 . 1 . 2 1 12 Special Weapon 2 | . . . . . . . . . . . . . . 1 . . . . . . . . . . . . . . . . 1 Impact Weapon . | . . . . . . . . . . . . . . . . . . . . . . . . . . . . . . . . Slashing Weapon 13 | . . . . . . . 1 6 . . . 1 1 3 1 . . . . . . . . . . . . . . . . Piercing Weapon 4 | . . . . . . . . . . . . . . . . . . . . . 1 . . . . . . 1 . . 2 Special Melee Weapon . | . . . . . . . . . . . . . . . . . . . . . . . . . . . . . . . . Unidentified Prototypes 40 | . . . 2 . . 1 2 8 . . . 2 . . . . 4 8 2 . . 1 . 1 . . . 4 . 1 4 Parts Lost 125 | . 1 4 6 . . 1 1 1 1 . 1 . 3 36 2 5 . 2 . . 6 . 1 2 4 4 1 . . . 43 Power 13 | . . . 1 . . . . . . . . . . 5 . 1 . 2 . . . . . . 1 . . . . . 3 Propulsion 23 | . . 2 . . . . . . . . 1 . 1 8 . 1 . . . . 1 . . 1 . 1 1 . . . 6 Utility 46 | . . . 1 . . 1 1 1 . . . . 1 8 1 1 . . . . 2 . 1 1 1 2 . . . . 24 Weapon 43 | . 1 2 4 . . . . . 1 . . . 1 15 1 2 . . . . 3 . . . 2 1 . . . . 10 Highest Loss Streak 22 | . 1 4 3 . . 1 1 1 1 . 1 . 3 21 2 3 . 2 . . 6 . 1 2 1 4 1 . . . 22 Average Slot Usage (%) 93 | . 98 99 97 99 100 99 97 99 100 100 100 100 99 96 97 88 96 91 86 87 87 87 88 87 85 85 85 84 88 89 85 Engine 5 | . 14 14 7 11 11 11 8 9 7 7 7 7 7 12 13 10 12 1 . . . . . . . . . . . . . Reactor 2 | . . . . . . . . . . . . . . . . . . 4 6 5 5 5 5 5 5 5 5 5 5 4 6 Treads 12 | . 28 27 22 22 22 22 18 18 15 15 15 15 14 18 17 19 20 14 . . . . . . . . . . . . 2 Leg 4 | . . . . . . . . . . . . . . . . . . 3 20 17 16 17 17 16 12 14 11 10 15 13 8 Device 12 | . . . 5 . . . 4 1 14 14 12 8 13 10 12 12 13 8 12 16 18 17 17 21 19 19 21 21 21 28 24 Storage 19 | . 26 28 22 22 22 30 27 27 23 23 23 23 23 20 20 20 20 18 20 22 21 17 17 17 15 10 10 10 10 8 8 Processor 5 | . . . . . . . 6 9 7 7 7 7 7 6 6 6 6 6 6 5 5 5 5 5 5 5 5 5 5 4 6 Protection 6 | . . . 4 11 11 2 4 7 7 7 9 13 7 8 6 6 5 6 . . . 4 5 1 6 9 10 10 10 8 8 Energy Gun 3 | . 15 13 14 . . . . . . . 4 19 14 1 5 2 11 3 . . . . . . . . . . . . 1 Energy Cannon 8 | . . . 7 32 33 22 4 . . . . . . . . 2 . 9 20 17 16 16 17 16 13 14 14 14 14 13 7 Ballistic Gun 7 | . 12 13 9 . . 10 22 26 23 22 17 . 8 15 5 1 4 4 . . . . . . . . . . . . 1 Naked Turns . | . . . . . . . . . . . . . . . . . . . . . . . . . . . . . . . . Heaviest Build 144 | 12 41 44 65 65 65 74 79 69 73 76 78 78 80 92 87 95 86 135 139 144 143 127 127 127 132 117 117 117 112 114 136 Greatest Support 105 | 40 40 40 46 46 46 46 46 43 43 43 43 40 40 80 88 88 90 90 84 84 85 85 85 85 95 95 95 90 90 105 105 Greatest Overweight (x) 18 | . 1 1 1 1 1 1 1 3 1 1 1 3 1 18 1 1 . 2 1 1 2 2 1 1 1 1 1 1 1 1 6 Average Overweight (x) . | . . . . 1 1 1 1 1 1 1 1 1 1 . . . . . 1 1 1 1 1 1 1 1 1 1 1 . 1 Largest Inventory Capacity 22 | 6 16 16 16 16 16 22 22 22 22 22 22 22 22 22 22 22 22 22 22 22 22 16 16 16 16 16 10 10 10 10 10 Average Capacity 18 | 5 15 16 16 16 16 20 22 22 22 22 22 22 22 22 22 22 22 19 22 22 20 16 16 16 16 10 10 10 10 9 9 Most Carried 22 | 2 13 16 16 16 16 16 22 22 21 20 22 22 22 22 22 22 22 22 21 22 22 16 16 16 16 15 10 10 10 10 10 Average Carried 16 | 1 9 12 15 15 15 15 20 21 18 18 19 20 21 20 21 20 21 18 20 21 20 15 15 15 14 9 9 9 9 8 9 Final Capacity 22 | 6 16 16 16 16 16 22 22 22 22 22 22 22 22 22 22 22 22 22 22 22 16 16 16 16 16 10 10 10 10 10 4 Final Carried 22 | 2 13 12 16 16 16 16 22 22 18 19 22 22 22 22 22 22 22 21 21 22 16 16 16 16 14 10 10 10 10 9 4 Class Distribution -------------------- 18% | Hauler-Skirmisher 13% | Hacker-Golem 12% | Hauler-Mutant 8% | Hauler-Golem 7% | Tank 7% | Hauler-Tank 6% | Golem 5% | Scavenger-Mutant 4% | Mutant 3% | Hauler-Gunner Dominant Class ---------------- Mutant | -10/Materials Mutant | -10/Mines Gunner | -9/Materials Tank | -9/Mines Tank | -9/Exiles Hauler-Gunner | -8/Mines Hauler-Tank | -8/Materials Hauler-Tank | -8/Storage Hauler-Skirmisher | -7/Factory Hauler-Skirmisher | -7/Lower Caves Hauler-Skirmisher | -7/Lower Caves Hauler-Mutant | -7/Data Miner Hauler-Skirmisher | -6/Proximity Caves Hauler-Skirmisher | -6/Factory Hauler-Mutant | -6/Lower Caves Hauler-Mutant | -6/Lower Caves Hauler-Mutant | -6/Zion Hauler-Mutant | -6/Deep Caves Hauler-Golem | -5/Proximity Caves Hauler-Golem | -5/Factory Hauler-Golem | -5/Extension Golem | -5/Cetus Golem | -5/Archives Golem | -5/Hub_04(d) Hacker-Golem | -4/Factory Hacker-Golem | -4/Upper Caves Hacker-Golem | -4/Upper Caves Commander-Golem | -4/Warlord Hacker-Golem | -3/Proximity Caves Hacker-Golem | -3/Research Hacker-Golem | -3/Armory Resources | -11 -10 -10 -9 -9 -9 -8 -8 -8 -7 -7 -7 -7 -6 -6 -6 -6 -6 -6 -5 -5 -5 -5 -5 -5 -4 -4 -4 -4 -3 -3 -3 ----------- Run | Scr Mat Min Mat Min Exi Min Mat Sto Fac Low Low Dat Pro Fac Low Low Zio Dee Pro Fac Ext Cet Arc Hub Fac Upp Upp War Pro Res Arm Matter Collected 12334 | 173 248 378 647 62 . 169 946 1441 71 206 434 50 230 2211 632 370 84 431 90 180 162 99 20 179 351 51 82 75 82 138 2042 Remotely . | . . . . . . . . . . . . . . . . . . . . . . . . . . . . . . . . Salvage Created 29916 | . 308 294 1749 73 . 304 1362 2167 93 490 507 28 660 3007 289 426 . 768 386 1112 1566 601 179 732 2809 481 588 313 544 532 7548 Parts 1322 | . 25 18 90 7 . 22 82 119 8 16 27 2 23 152 12 10 . 5 8 49 65 20 7 36 95 25 19 10 30 37 303 Haulers Intercepted 18 | . 1 . 5 . . . 5 4 . . . . . . . . . . 1 . 1 . . . 1 . . . . . . Recyclers Shooed 15 | . 2 . . . . 1 3 2 . . . . . 3 . . . . . . . . . . 4 . . . . . . Parts Field Recycled . | . . . . . . . . . . . . . . . . . . . . . . . . . . . . . . . . Retrieved Matter . | . . . . . . . . . . . . . . . . . . . . . . . . . . . . . . . . Parts Self-Destructed 230 | . . . . . . . . . . 4 11 . 11 . 4 15 . . 21 . . . . . . 11 19 110 24 . . Prevented 53 | . . . . . . . . . . 9 10 . 12 . . . . . . . . . . . . . 2 10 10 . . Kills | -11 -10 -10 -9 -9 -9 -8 -8 -8 -7 -7 -7 -7 -6 -6 -6 -6 -6 -6 -5 -5 -5 -5 -5 -5 -4 -4 -4 -4 -3 -3 -3 ------- Run | Scr Mat Min Mat Min Exi Min Mat Sto Fac Low Low Dat Pro Fac Low Low Zio Dee Pro Fac Ext Cet Arc Hub Fac Upp Upp War Pro Res Arm Combat Hostiles Destroyed 504 | . 11 17 30 7 . 14 17 42 4 10 9 . 13 55 3 11 . 9 5 16 18 9 2 7 37 7 10 3 11 8 119 Melee 12 | . . 1 . . . 1 . . . . . . . 5 3 . . . . . . . . . 1 . . . . . 1 Guns 154 | . 7 8 20 . . 3 15 40 4 . 3 . 4 35 . 6 . . . . . . . . 1 . . . . . 8 Cannons 158 | . . . 5 2 . 4 2 . . . . . . 2 . 1 . 1 5 16 16 3 2 5 21 7 8 1 7 7 43 AOE 117 | . 4 8 4 5 . 6 . 2 . 7 6 . 8 11 . 4 . 1 . . . 4 . . 6 . 2 . 2 1 36 Classes Destroyed 23 | . 4 1 6 . . . . . . . 3 . . 3 . . . 1 . . 1 . . 1 . . . . . . 3 Worker 19 | . . . 1 1 . 1 . 4 . . . . . 3 . . . . . 1 . . . 4 3 . . . . 1 . Builder 7 | . . . 1 . . . . 1 . . . . . 1 . . . . . 1 . . . 1 2 . . . . . . Tunneler 3 | . . . . . . . . . . . . . . 1 . . . . . . 1 . . 1 . . . . . . . Hauler 18 | . 1 . 5 . . . 5 4 . . . . . . . . . . 1 . 1 . . . 1 . . . . . . Recycler 9 | . . . 2 . . . 2 1 . . . . . . . . . . . . 2 . . 1 1 . . . . . . Minesweeper 1 | . . . . . . . . . . . 1 . . . . . . . . . . . . . . . . . . . . Mechanic 3 | . . . . . . . . . . . . . . . . . . . . . . . . . . . . . . . 3 Operator 5 | . . . . . . . . . . . . . . 1 . . . . . 1 1 . . 1 . . . . . . 1 Watcher 15 | . 1 . 1 . . . 3 2 . . . . . 1 . . . . . . 1 1 . . 1 . . . . 1 3 Swarmer 107 | . 6 3 6 7 . 11 . 10 4 3 2 . 3 6 . 3 . . . . 3 1 . 1 4 . . . 7 2 25 Saboteur 4 | . . . . . . . . . . . . . . 2 . . . . . . . . . . 1 . . . . . 1 Grunt 183 | . 5 6 11 . . 2 8 19 . 5 4 . 8 23 2 7 . . 5 8 9 6 . 1 11 1 7 . . . 35 Brawler 25 | . . . 2 . . 1 1 . . . . . 2 3 . . . . . 1 . . . . 6 . 1 . . . 8 Duelist 19 | . . . 2 . . . 1 1 . 1 . . . 4 1 . . . . . . . . . 4 . . . . . 5 Protector 5 | . . . . . . . . . . . . . . . . . . . . . . . . 2 . . . . . . 3 Sentry 63 | . . . 9 . . . 7 12 . 1 1 . . 8 . . . . . 4 3 . 2 3 2 . . . . 1 10 Demolisher 3 | . . . . . . . . . . . . . . . . . . . . . . . . . . . . . . . 3 Specialist 2 | . . . . . . . . . . . . . . . . . . . . . . . . . . . . . . . 2 Hunter 18 | . . . . . . . . . . . 1 . . 1 . . . . . 1 1 1 . . 4 2 2 . 2 . 3 Programmer 48 | . . . . . . . . . . . 1 . . 8 . 1 . . . 2 . . . . 5 . . 1 2 5 23 Behemoth 5 | . . . . . . . . . . . . . . . . . . . . . 2 . . . . . . 2 . . 1 Cetus Guard 1 | . . . . . . . . . . . . . . . . . . . . . . 1 . . . . . . . . . Decomposer 3 | . . . . . . . . . . . . . . . 3 . . . . . . . . . . . . . . . . Assembled 10 | . . 8 . . . . . . . . . . . . . . . 2 . . . . . . . . . . . . . Golem 7 | . . . . . . . . . . . . . . . . . . 7 . . . . . . . . . . . . . Thug 5 | . . . . . . . . . . . 1 . . . . . . . . . . . . . . 4 . . . . . Best Kill Streak 20 | . 3 8 5 5 . 4 6 8 4 7 4 1 4 9 2 4 . 6 4 4 4 8 1 7 20 4 4 3 4 3 16 Combat Bots Only 14 | . 3 8 3 4 . 4 5 4 4 7 4 . 4 7 2 4 . 6 4 4 3 7 1 2 14 4 4 3 4 3 14 Max Kills in Single Turn 5 | . 2 2 2 3 . 3 1 2 2 2 2 1 3 3 1 2 . 1 1 1 1 2 1 3 5 1 2 1 1 2 4 Gunslinging 1 | . . . 1 . . 1 . . 1 . . . . . . . . . . . . . . . . . . . . . . Exploded 4 | . 2 2 1 2 . 2 . 2 . 2 2 . 3 3 . 2 . 1 . . . 2 . . 2 . 2 . 1 1 4 Melee 1 | . . 1 . . . 1 . . . . . . . 1 1 . . . . . . . . . 1 . . . . . 1 Uniques/NPCs Destroyed 2 | . . . . . . . . . . . . 1 . . . . . 1 . . . . . . . . . . . . . Data Miner (-7/Data Miner) Z-Imprinter (-6/Deep Caves) Combat | -11 -10 -10 -9 -9 -9 -8 -8 -8 -7 -7 -7 -7 -6 -6 -6 -6 -6 -6 -5 -5 -5 -5 -5 -5 -4 -4 -4 -4 -3 -3 -3 -------- Run | Scr Mat Min Mat Min Exi Min Mat Sto Fac Low Low Dat Pro Fac Low Low Zio Dee Pro Fac Ext Cet Arc Hub Fac Upp Upp War Pro Res Arm Damage Taken 33874 | . 325 623 1529 125 . 417 656 1085 89 139 301 . 486 6426 353 965 . 732 307 1100 2370 121 293 452 2095 851 706 444 554 322 10008 Core 3686 | . 56 97 240 14 . 44 99 139 14 . 10 . . 673 . 72 . 30 20 . 290 . . 19 235 116 129 81 . 19 1289 Absorbed by Shields 1445 | . . . . . . . . . . . . . . . . . . . . . 127 67 . . . . . . . . 1251 Core Remaining (%) 55 | 100 . 38 . . . 25 . 56 . . . . 96 . . . . . 6 . . . . 69 . . . . 51 . . Volleys Fired 1316 | . 30 36 88 5 . 19 96 102 4 12 20 . 22 168 19 25 3 45 12 44 48 20 6 31 84 20 18 11 24 17 287 Largest 3 | . 2 2 3 3 . 3 3 3 3 3 3 . 3 3 1 2 1 2 3 3 3 3 3 3 3 3 3 3 3 3 3 Hottest 244 | . 85 85 189 189 . 189 189 75 75 86 150 . 150 177 80 103 225 130 75 75 90 75 75 75 80 75 75 75 75 75 244 Shots Fired 2760 | . 58 60 236 9 . 36 239 294 12 14 36 . 37 434 21 39 3 50 35 121 98 33 18 73 152 42 47 17 52 41 453 Gun 1451 | . 56 51 203 . . 12 213 292 12 3 28 . 25 415 3 30 3 11 . . . . . . 12 . . . . . 82 Cannon 1095 | . . . 30 6 . 16 26 1 . . . . 2 8 . 5 . 37 35 121 98 26 18 73 120 42 46 17 43 37 288 Launcher 198 | . 2 9 3 3 . 8 . 1 . 11 8 . 10 11 2 4 . 2 . . . 7 . . 20 . 1 . 9 4 83 Special 16 | . . . . . . . . . . . . . . . 16 . . . . . . . . . . . . . . . . Kinetic 1183 | . 25 27 92 . . 12 213 292 12 2 3 . 7 366 1 14 . 6 . . . . . . 12 . . . . . 99 Thermal 1090 | . 25 24 24 . . 1 23 1 . . . . 2 45 18 21 3 . 35 121 98 26 18 73 120 42 46 17 43 37 227 Explosive 59 | . 2 9 3 3 . 3 . 1 . . 5 . 3 3 2 4 . 2 . . . . . . 1 . 1 . . . 17 Electromagnetic 428 | . 6 . 117 6 . 20 3 . . 12 28 . 25 20 . . . 42 . . . 7 . . 19 . . . 9 4 110 Robot Hit Streak 48 | . 9 17 39 13 . 4 14 19 11 3 11 . 10 24 4 19 . 30 48 23 11 6 4 11 13 7 18 1 5 19 31 Robot Miss Streak 13 | . 4 3 5 1 . 3 6 3 1 2 3 . 2 13 4 3 . 3 1 2 3 4 1 3 3 2 4 2 2 1 6 Penetration Max 1 | . . . . . . . . . . . . . . . . . . . . . . . . . 1 . . . . . 1 Secondary Targets 21 | . 1 2 5 . . 1 . 5 2 . . . 1 2 . 2 . . . . . . . . . . . . . . . Max Gunslinging Chain 1 | . 1 1 1 . . 1 . 1 1 . . . 1 1 . 1 . . . . . . . . . . . . . . . Shots Hit Robots 1860 | . 40 41 153 6 . 15 152 204 7 7 28 1 24 370 12 35 . 36 26 63 56 13 10 19 109 30 29 3 21 28 322 Core Hits 1203 | . 22 36 59 8 . 16 50 90 6 14 21 1 31 196 14 42 . 35 10 29 29 18 6 22 87 14 33 1 14 16 283 Critical Hits 20 | . . . 2 . . . 5 6 1 . . . 1 . 1 1 . . . . . . . . 1 . . . . . 2 Critical Kills 5 | . . . . . . . 1 2 1 . . . . . . 1 . . . . . . . . . . . . . . . Critical Parts Destroyed 14 | . . . 1 . . . 4 4 . . . . 1 . 1 . . . . . . . . . 1 . . . . . 2 Melee Attacks 60 | . . . . . . . 1 9 . . . 16 1 20 3 . . . . . 4 . . . . . . 2 . . 4 Impact . | . . . . . . . . . . . . . . . . . . . . . . . . . . . . . . . . Slashing 50 | . . . . . . . 1 9 . . . 16 1 20 3 . . . . . . . . . . . . . . . . Piercing 10 | . . . . . . . . . . . . . . . . . . . . . 4 . . . . . . 2 . . 4 Sneak Attacks 1 | . . . . . . . . . . . . 1 . . . . . . . . . . . . . . . . . . . Combat Hostiles . | . . . . . . . . . . . . . . . . . . . . . . . . . . . . . . . . Follow-up Attacks . | . . . . . . . . . . . . . . . . . . . . . . . . . . . . . . . . Damage Inflicted 73645 | . 762 1207 2798 496 . 798 2326 3843 122 713 1097 161 1422 9121 488 1501 . 1347 1244 2354 2702 1398 416 2306 7036 1351 2040 42 1508 1836 21210 Guns 18461 | . 477 474 1792 . . 46 1965 3590 118 10 476 . 405 6062 22 785 . 96 . . . . . . 305 . . . . . 1838 Cannons 28826 | . . . 475 98 . 213 330 . . . . . . 226 . 121 . 833 1244 2306 2668 515 405 1205 4141 1351 1517 42 1035 1497 8604 Explosions 24522 | . 248 717 502 363 . 437 . 164 . 703 621 . 1017 1961 236 595 . 418 . . . 883 . 1084 2590 . 523 . 473 339 10648 Melee 1244 | . . . . . . . . . . . . 161 . 811 118 . . . . . 34 . . . . . . . . . 120 Ramming 480 | . 37 16 29 35 . 102 31 89 4 . . . . 61 . . . . . 48 . . 11 17 . . . . . . . Kinetic 14490 | . 119 141 708 . . 46 1965 3590 118 . 72 . 52 5033 . 412 . 28 . . . . . . 305 . . . . . 1901 Thermal 31119 | . 338 333 519 139 . 22 308 . . 80 252 . 305 1748 134 494 . . 1244 2306 2668 693 405 1205 4668 1351 1517 42 1035 1613 7700 Explosive 10334 | . 215 717 279 224 . 232 . 164 . . 202 . 281 607 236 595 . 418 . . . . . . 515 . 523 . . . 5126 Electromagnetic 15978 | . 53 . 1263 98 . 396 22 . . 633 571 . 784 861 . . . 901 . . . 705 . 1084 1548 . . . 473 223 6363 Impact . | . . . . . . . . . . . . . . . . . . . . . . . . . . . . . . . . Slashing 1090 | . . . . . . . . . . . . 161 . 811 118 . . . . . . . . . . . . . . . . Piercing 154 | . . . . . . . . . . . . . . . . . . . . . 34 . . . . . . . . . 120 Highest Corruption 45 | . 3 3 . . . . . 1 1 1 1 1 2 9 9 10 10 . . 2 3 1 1 9 3 3 3 3 3 2 45 Average Corruption 4 | . 2 3 . . . . . 1 1 1 1 1 1 5 9 9 10 . . 1 1 1 1 4 2 3 3 2 2 1 12 Corruption Purged 2 | . . . . . . . . . . . . . . . . . . . . . 2 . . . . . . . . . . Effects 522 | . 15 9 . . . . . 1 . 9 8 2 9 72 36 38 8 . . 3 23 6 2 22 6 19 15 4 8 5 202 Message Errors 103 | . 2 1 . . . . . 1 . 5 5 1 4 7 12 8 2 . . 1 9 2 1 3 3 6 4 . 2 2 22 Matter Fused 77 | . 6 1 . . . . . . . . . . . 11 6 5 . . . . 5 . . 4 . 3 3 1 1 . 31 Heat Flow Errors 47 | . 1 4 . . . . . . . . . . 1 9 3 3 1 . . 1 2 . . 2 1 4 2 1 . . 12 Energy Discharges 49 | . 1 . . . . . . . . 3 1 . 1 8 2 3 . . . . 1 1 1 4 1 1 1 2 2 . 16 Parts Rejected 2 | . . . . . . . . . . . . . . . . 1 . . . . . . . . . . . . . . 1 Data Loss (minor) 61 | . 3 2 . . . . . . . 1 2 1 2 6 8 1 1 . . 1 4 1 . 1 . 3 4 . 2 1 17 Data Loss (major) 13 | . . . . . . . . . . . . . . 3 1 4 1 . . . . . . 2 . . . . . . 2 Misfires 14 | . . . . . . . . . . . . . . 2 2 2 . . . . . . . 1 . . . . . . 7 Alerts 3 | . . . . . . . . . . . . . . . . . . . . . . . . . . . . . . . 3 Misdirections 25 | . . . . . . . . . . . . . . . . 5 3 . . . . . . . . . . . . . 17 Targeting Errors 110 | . 2 1 . . . . . . . . . . . 22 2 4 . . . . 1 2 . 2 1 2 1 . 1 2 67 Weapon Failures 18 | . . . . . . . . . . . . . 1 4 . 2 . . . . 1 . . 3 . . . . . . 7 Overload Shots 3 | . . . . . . . . . . . . . . . . . 3 . . . . . . . . . . . . . . Overflow Damage 2168 | . 3 4 16 15 . 41 . . . 5 37 . 38 107 22 . . 10 131 10 17 92 . 126 274 55 27 . 140 156 842 Projectiles 1286 | . . . . 5 . 2 . . . . . . . . 22 . . 4 131 10 17 48 . 50 246 55 27 . 140 129 400 Explosions 843 | . 3 4 16 10 . 39 . . . 5 37 . 38 68 . . . 6 . . . 44 . 76 28 . . . . 27 442 Melee 39 | . . . . . . . . . . . . . . 39 . . . . . . . . . . . . . . . . . Knockbacks 18 | . . . . . . . 1 . . . . . . . . . . . . . . . . . . . . . . . 17 Impact 1 | . . . . . . . 1 . . . . . . . . . . . . . . . . . . . . . . . . Kinetic 17 | . . . . . . . . . . . . . . . . . . . . . . . . . . . . . . . 17 Secondary . | . . . . . . . . . . . . . . . . . . . . . . . . . . . . . . . . Self-Inflicted Damage 1551 | . 20 79 78 16 . 55 . . . . 69 . 88 225 13 27 . . . . . . . 176 11 . 22 . 8 . 664 Shots 60 | . 2 2 3 1 . 3 . . . . 2 . 4 10 1 1 . . . . . . . 2 3 . 1 . 1 . 24 Rammed 61 | . 5 6 4 5 . 12 6 13 1 . . . . 9 . . . . . . . . . . . . . . . . . Targets Rammed 67 | . 5 6 4 5 . 13 6 15 1 . . . . 9 . . . . . 1 . . 1 1 . . . . . . . Kicked 3 | . . . . . . . . . . . . . . . . . . . . 1 . . 1 1 . . . . . . . Crushed 3 | . . . . . . 1 . 2 . . . . . . . . . . . . . . . . . . . . . . . Highest Temperature 437 | . 187 314 427 257 . 224 288 219 . . 63 . 66 305 242 164 211 174 22 152 249 . 4 213 109 208 233 162 . . 437 Average Temperature 93 | . 70 93 97 128 . 105 100 63 . . 28 . 31 92 100 58 87 43 5 48 130 . 4 93 62 104 110 99 . . 143 Received Heat Transfer 6362 | . 123 161 414 . . 81 297 369 . 63 81 . 135 1485 144 354 . 177 117 240 433 8 45 27 300 99 141 36 . . 1032 Effects 11 | . . . 2 . . . 1 . . . . . . 2 . . . . . . . . . . . . . . . . 6 Shutdowns 1 | . . . . . . . . . . . . . . . . . . . . . . . . . . . . . . . 1 Energy Bleed 1 | . . . . . . . . . . . . . . . . . . . . . . . . . . . . . . . 1 Interference 8 | . . . 2 . . . 1 . . . . . . 2 . . . . . . . . . . . . . . . . 3 Matter Decay 1 | . . . . . . . . . . . . . . . . . . . . . . . . . . . . . . . 1 Siege Activations . | . . . . . . . . . . . . . . . . . . . . . . . . . . . . . . . . Robots Corrupted 61 | . . . 1 . . . . . . 3 . . 1 2 . . . 7 . . . 3 . 3 8 . . . 2 . 31 Combat Hostiles 58 | . . . 1 . . . . . . 3 . . 1 2 . . . 7 . . . 2 . 2 8 . . . 2 . 30 Parts Fried 111 | . . . 9 . . 2 . . . 6 3 . 4 4 . . . . . . . 2 . 10 9 . . . 4 1 57 Impact Corruptions . | . . . . . . . . . . . . . . . . . . . . . . . . . . . . . . . . Robots Melted . | . . . . . . . . . . . . . . . . . . . . . . . . . . . . . . . . Combat Hostiles . | . . . . . . . . . . . . . . . . . . . . . . . . . . . . . . . . Parts Melted 37 | . 3 1 . . . . . . . . . . . 4 . 4 . . 1 2 1 . . . 3 . . . . 2 16 Heat Transferred 22087 | . 740 740 1077 200 . 37 555 . . 100 150 . 250 2452 420 825 . . 675 1300 1600 412 250 650 2525 750 775 25 500 800 4279 Parts Sabotaged 8 | . . . . . . . . . . . . . . 3 . . . . . . . . . . 2 . . . . . 3 Parts Stolen . | . . . . . . . . . . . . . . . . . . . . . . . . . . . . . . . . Parts Stripped . | . . . . . . . . . . . . . . . . . . . . . . . . . . . . . . . . Power Chain Reactions 26 | . 1 . 4 1 . 1 . . . 2 4 . 2 3 . . . . . . . 1 . . 3 . . . . 1 3 Missiles Intercepted . | . . . . . . . . . . . . . . . . . . . . . . . . . . . . . . . . Alert | -11 -10 -10 -9 -9 -9 -8 -8 -8 -7 -7 -7 -7 -6 -6 -6 -6 -6 -6 -5 -5 -5 -5 -5 -5 -4 -4 -4 -4 -3 -3 -3 ------- Run | Scr Mat Min Mat Min Exi Min Mat Sto Fac Low Low Dat Pro Fac Low Low Zio Dee Pro Fac Ext Cet Arc Hub Fac Upp Upp War Pro Res Arm Peak Influence 2766 | . 193 195 314 335 . 146 344 462 252 . . . . 1389 . . . . . 415 452 977 529 1344 2220 . . . . 200 2766 Initial 658 | . . 30 11 114 . . 35 128 141 . . . . 88 . . . . . . 190 241 310 184 658 . . . . 60 105 Average 417 | . 76 61 170 95 . 62 158 268 222 . . . . 723 . . . . . 261 167 610 507 612 1179 . . . . 82 956 Maximum Alert Level 5 | . . . 1 1 . . 1 2 1 . . . . 4 . . . . . 2 2 3 2 4 5 . . . . 1 5 Low Security (%) 44 | 100 100 100 60 65 . 100 64 21 23 . . . . 26 . . . . . 23 77 . . 3 . . . . . 96 12 Level 1 23 | . . . 39 34 . . 35 69 76 . . . . . . . . . . 74 17 8 7 12 . . . . . 3 11 Level 2 10 | . . . . . . . . 9 . . . . . 13 . . . . . 2 5 49 92 46 11 . . . . . 21 Level 3 11 | . . . . . . . . . . . . . . 32 . . . . . . . 41 . 36 42 . . . . . 20 Level 4 6 | . . . . . . . . . . . . . . 27 . . . . . . . . . 1 26 . . . . . 13 Level 5 2 | . . . . . . . . . . . . . . . . . . . . . . . . . 3 . . . . . 15 High Security 1 | . . . . . . . . . . . . . . . . . . . . . . . . . 16 . . . . . 4 Max Security . | . . . . . . . . . . . . . . . . . . . . . . . . . . . . . . . . Squads Dispatched 77 | . 2 . 2 . . . 2 8 1 . . . . 21 . . . . . 3 1 1 . 2 12 . . . . 2 20 Investigation 9 | . 1 . 1 . . . 1 . 1 . . . . 2 . . . . . 1 . 1 . . . . . . . . 1 Extermination 19 | . . . . . . . . . . . . . . 7 . . . . . 1 . . . . 1 . . . . 2 8 Reinforcement 16 | . 1 . 1 . . . 1 4 . . . . . 3 . . . . . 1 1 . . 2 2 . . . . . . Assault 22 | . . . . . . . . . . . . . . 3 . . . . . . . . . . 8 . . . . . 11 Garrison 11 | . . . . . . . . 4 . . . . . 6 . . . . . . . . . . 1 . . . . . . Intercept . | . . . . . . . . . . . . . . . . . . . . . . . . . . . . . . . . Construction Impeded 3 | . . . 1 . . . . . . . . . . 1 . . . . . . . . . . 1 . . . . . . Haulers Reinforced 1 | . . . . . . . . . . . . . . 1 . . . . . . . . . . . . . . . . . Stealth | -11 -10 -10 -9 -9 -9 -8 -8 -8 -7 -7 -7 -7 -6 -6 -6 -6 -6 -6 -5 -5 -5 -5 -5 -5 -4 -4 -4 -4 -3 -3 -3 --------- Run | Scr Mat Min Mat Min Exi Min Mat Sto Fac Low Low Dat Pro Fac Low Low Zio Dee Pro Fac Ext Cet Arc Hub Fac Upp Upp War Pro Res Arm Distress Signals 18 | . 1 . 5 . . . 2 1 . . . . . . . . . . . . . 1 . 1 2 . . 2 . . 3 Communications Jammed . | . . . . . . . . . . . . . . . . . . . . . . . . . . . . . . . . Distress Signals . | . . . . . . . . . . . . . . . . . . . . . . . . . . . . . . . . Times Spotted 716 | . 20 21 48 7 . 13 32 55 4 7 10 . 11 76 4 12 . 20 6 19 34 20 6 18 61 7 10 5 12 9 169 Peak Tracking Total 14 | . 3 10 5 4 . 4 4 4 4 7 4 . 4 11 3 4 . 6 5 4 5 7 2 10 13 4 4 3 4 3 14 Tactical Retreats 33 | . 1 3 5 . . . 1 2 . . . . . 7 1 1 . . 2 1 1 1 . . 2 . . . . . 5 Traps | -11 -10 -10 -9 -9 -9 -8 -8 -8 -7 -7 -7 -7 -6 -6 -6 -6 -6 -6 -5 -5 -5 -5 -5 -5 -4 -4 -4 -4 -3 -3 -3 ------- Run | Scr Mat Min Mat Min Exi Min Mat Sto Fac Low Low Dat Pro Fac Low Low Zio Dee Pro Fac Ext Cet Arc Hub Fac Upp Upp War Pro Res Arm Traps Triggered 16 | . 2 . 1 . . . 1 2 1 . . . . 1 . . . . . . 1 . . 3 . . . . . . 4 Indirectly 2 | . . . . . . . . . . . . . . . . . . . . . . . . . . . . . . . 2 Trap Hack Attempts . | . . . . . . . . . . . . . . . . . . . . . . . . . . . . . . . . Triggered . | . . . . . . . . . . . . . . . . . . . . . . . . . . . . . . . . Disarmed . | . . . . . . . . . . . . . . . . . . . . . . . . . . . . . . . . Reprogrammed . | . . . . . . . . . . . . . . . . . . . . . . . . . . . . . . . . Reused 1 | . . . . . . . . . . . . 1 . . . . . . . . . . . . . . . . . . . Traps Extracted . | . . . . . . . . . . . . . . . . . . . . . . . . . . . . . . . . Installed 4 | . . . . . . . . . . . . 4 . . . . . . . . . . . . . . . . . . . Triggered 20 | . . . . . . . . . . . . . . . . 4 . . . . . . . . . . 2 11 2 . 1 Machines | -11 -10 -10 -9 -9 -9 -8 -8 -8 -7 -7 -7 -7 -6 -6 -6 -6 -6 -6 -5 -5 -5 -5 -5 -5 -4 -4 -4 -4 -3 -3 -3 ---------- Run | Scr Mat Min Mat Min Exi Min Mat Sto Fac Low Low Dat Pro Fac Low Low Zio Dee Pro Fac Ext Cet Arc Hub Fac Upp Upp War Pro Res Arm Machines Disabled 92 | . . . 6 18 . 1 . 3 . . . . . 3 . . 3 3 . 3 5 4 2 14 6 . . . . . 21 Max in Single Turn 16 | . . . 2 16 . 1 . 1 . . . . . 1 . . 1 1 . 1 1 1 1 6 1 . . . . . 2 Garrison Access 7 | . . . . . . . 1 1 . . . . . 1 . . . . . 2 . . . . 1 . . . . 1 . Network Hub 2 | . . . . . . . . . . . . . . . . . . . . . . . . 2 . . . . . . . Energy Cycler 1 | . . . . . . . . . . . . . . . . . . . . . . . . . . . . . . . 1 Machines Sabotaged . | . . . . . . . . . . . . . . . . . . . . . . . . . . . . . . . . Garrisons Compromised . | . . . . . . . . . . . . . . . . . . . . . . . . . . . . . . . . Overloaded Fab Kills . | . . . . . . . . . . . . . . . . . . . . . . . . . . . . . . . . Fab Network Shutdowns 2 | . . . . . . . . . . . . . . 1 . . . . . . . . . . 1 . . . . . . Hacking | -11 -10 -10 -9 -9 -9 -8 -8 -8 -7 -7 -7 -7 -6 -6 -6 -6 -6 -6 -5 -5 -5 -5 -5 -5 -4 -4 -4 -4 -3 -3 -3 --------- Run | Scr Mat Min Mat Min Exi Min Mat Sto Fac Low Low Dat Pro Fac Low Low Zio Dee Pro Fac Ext Cet Arc Hub Fac Upp Upp War Pro Res Arm Machines Accessed 127 | . 5 . 9 . 5 . 12 15 4 . 3 4 . 15 1 1 . . . 7 6 4 . 6 5 . 1 11 . 3 10 Terminals 71 | . 4 . 6 . . . 8 13 3 . . . . 7 . . . . . 4 6 4 . 5 4 . 1 . . . 6 Fabricators 9 | . . . . . . . . . . . . . . 2 . . . . . 1 . . . . 1 . . . . 1 4 Repair Stations 8 | . . . 2 . . . . 1 1 . . . . 3 . . . . . . . . . . . . . . . 1 . Recycling Units 4 | . 1 . 1 . . . 2 . . . . . . . . . . . . . . . . . . . . . . . . Scanalyzers 2 | . . . . . . . 1 . . . . . . 1 . . . . . . . . . . . . . . . . . Garrison Access 8 | . . . . . . . 1 1 . . . . . 2 . . . . . 2 . . . 1 . . . . . 1 . Total Hacks 434 | . 14 . 28 . 50 . 43 50 9 . 11 27 . 41 1 1 . . . 17 22 7 . 8 18 . 6 19 . 21 41 Successful 275 | . 8 . 13 . 50 . 27 30 4 . 11 27 . 21 1 1 . . . 9 10 3 . 1 9 . 4 19 . 13 14 Failed 158 | . 6 . 15 . . . 15 20 5 . . . . 20 . . . . . 8 12 4 . 7 9 . 2 . . 8 27 Catastrophic 31 | . . . 1 . . . 1 4 3 . . . . 5 . . . . . 1 . 3 . 5 4 . 1 . . . 3 Database Lockouts 1 | . . . . . . . 1 . . . . . . . . . . . . . . . . . . . . . . . . Manual 195 | . 10 . 19 . 1 . 38 35 4 . . . . 13 . . 4 . . 9 10 9 . 1 13 . 9 1 . 6 13 Terminals 231 | . 13 . 19 . . . 35 46 7 . . . . 19 . . . . . 10 22 7 . 7 16 . 6 . . . 24 Fabricators 37 | . . . . . . . . . . . . . . 8 . . . . . 2 . . . . 2 . . . . 8 17 Repair Stations 29 | . . . 7 . . . . 2 2 . . . . 9 . . . . . . . . . . . . . . . 9 . Recycling Units 7 | . 1 . 2 . . . 4 . . . . . . . . . . . . . . . . . . . . . . . . Scanalyzers 4 | . . . . . . . 3 . . . . . . 1 . . . . . . . . . . . . . . . . . Garrison Access 17 | . . . . . . . 1 2 . . . . . 4 . . . . . 5 . . . 1 . . . . . 4 . Terminal Hacks 174 | . 5 . 4 . 50 . 7 16 2 . 11 27 . 4 1 1 . . . 4 6 3 . 1 5 . 4 19 . . 4 Record 84 | . . . . . 49 . . . . . 9 11 . . . . . . . . . 1 . . . . 1 12 . . 1 Part Schematic 12 | . 1 . . . . . 1 1 . . . 7 . 1 . . . . . . . . . . 1 . . . . . . Robot Schematic 6 | . . . . . . . . . . . . 6 . . . . . . . . . . . . . . . . . . . Robot Analysis 18 | . 2 . 2 . . . 3 1 . . . . . 1 . . . . . 1 1 2 . 1 1 . 3 . . . . Prototype ID Bank 10 | . . . . . . . 1 1 . . . 3 . . . . . . . . . . . . . . . 5 . . . Open Door 9 | . . . . . . . . 3 . . 2 . . . 1 1 . . . . . . . . . . . 2 . . . Branch Access Points 4 | . 1 . 1 . . . . . 1 . . . . 1 . . . . . . . . . . . . . . . . . Machine Index 1 | . . . . . . . . . . . . . . . . . . . . . . . . . 1 . . . . . . Terminal Index 3 | . . . . . . . . 1 . . . . . . . . . . . . . . . . 1 . . . . . 1 Fabricator Index 1 | . . . . . . . . . . . . . . . . . . . . 1 . . . . . . . . . . . Repair Station Index 1 | . . . . . . . . . . . . . . . . . . . . . 1 . . . . . . . . . . Garrison Index 1 | . . . . . . . . . . . . . . . . . . . . . 1 . . . . . . . . . . Alert Level 5 | . . . . . . . . 3 . . . . . . . . . . . . . . . . 1 . . . . . 1 Unreport Threat 7 | . . . 1 . . . . 4 . . . . . 1 . . . . . . . . . . . . . . . . 1 Locate Traps 1 | . . . . . . . . . . . . . . . . . . . . . 1 . . . . . . . . . . Recall Investigation 1 | . . . . . . . . . . . . . . . . . . . . 1 . . . . . . . . . . . Hauler Manifests 4 | . 1 . . . . . 1 1 1 . . . . . . . . . . . . . . . . . . . . . . Registered Components 1 | . . . . . . . 1 . . . . . . . . . . . . . . . . . . . . . . . . Zone Layout 4 | . . . . . . . . 1 . . . . . . . . . . . 1 2 . . . . . . . . . . EX-Prototype ID Bank 1 | . . . . . 1 . . . . . . . . . . . . . . . . . . . . . . . . . . Fabricator Hacks 18 | . . . . . . . . . . . . . . 6 . . . . . 2 . . . . 2 . . . . 2 6 Load Schematic 8 | . . . . . . . . . . . . . . 2 . . . . . 1 . . . . 1 . . . . 1 3 Build 10 | . . . . . . . . . . . . . . 4 . . . . . 1 . . . . 1 . . . . 1 3 Repair Station Hacks 20 | . . . 5 . . . . 2 1 . . . . 5 . . . . . . . . . . . . . . . 7 . Scan Component 12 | . . . 3 . . . . 1 1 . . . . 3 . . . . . . . . . . . . . . . 4 . Repair 8 | . . . 2 . . . . 1 . . . . . 2 . . . . . . . . . . . . . . . 3 . Recycling Unit Hacks 2 | . . . 1 . . . 1 . . . . . . . . . . . . . . . . . . . . . . . . Retrieve Components 2 | . . . 1 . . . 1 . . . . . . . . . . . . . . . . . . . . . . . . Scanalyzer 4 | . . . . . . . 3 . . . . . . 1 . . . . . . . . . . . . . . . . . Insert Component 2 | . . . . . . . 1 . . . . . . 1 . . . . . . . . . . . . . . . . . Analyze 2 | . . . . . . . 2 . . . . . . . . . . . . . . . . . . . . . . . . Garrison Access Hacks 4 | . . . . . . . 1 1 . . . . . . . . . . . 1 . . . . . . . . . 1 . Seal Access 4 | . . . . . . . 1 1 . . . . . . . . . . . 1 . . . . . . . . . 1 . Unauthorized Hacks 53 | . 3 . 3 . . . 15 11 1 . . . . 5 . . . . . 2 4 . . . 2 . . . . 3 4 Terminals 43 | . 2 . 3 . . . 14 11 1 . . . . 3 . . . . . 1 4 . . . 2 . . . . . 2 Track 7 | . . . . . . . 3 3 . . . . . . . . . . . . 1 . . . . . . . . . . Assimilate 2 | . . . . . . . . . . . . . . 1 . . . . . . . . . . . . . . . . 1 Botnet 29 | . 1 . 3 . . . 8 7 1 . . . . 2 . . . . . 1 3 . . . 2 . . . . . 1 Disrupt 2 | . 1 . . . . . 1 . . . . . . . . . . . . . . . . . . . . . . . . Operators 3 | . . . . . . . 2 1 . . . . . . . . . . . . . . . . . . . . . . . Fabricators 6 | . . . . . . . . . . . . . . 1 . . . . . . . . . . . . . . . 3 2 Report 1 | . . . . . . . . . . . . . . . . . . . . . . . . . . . . . . 1 . Prioritize 3 | . . . . . . . . . . . . . . 1 . . . . . . . . . . . . . . . 1 1 Siphon 2 | . . . . . . . . . . . . . . . . . . . . . . . . . . . . . . 1 1 Repair Stations . | . . . . . . . . . . . . . . . . . . . . . . . . . . . . . . . . Recycling Units 2 | . 1 . . . . . 1 . . . . . . . . . . . . . . . . . . . . . . . . Tunnel 2 | . 1 . . . . . 1 . . . . . . . . . . . . . . . . . . . . . . . . Scanalyzers . | . . . . . . . . . . . . . . . . . . . . . . . . . . . . . . . . Garrison Access 2 | . . . . . . . . . . . . . . 1 . . . . . 1 . . . . . . . . . . . Jam 2 | . . . . . . . . . . . . . . 1 . . . . . 1 . . . . . . . . . . . Data Cores Recovered 2 | . . . . . . . . . . . . . . . . . . . . 1 . . . . . . . . . . 1 Used 2 | . . . . . . . . . . . . . . . . . . . . 1 . . . . . . . . . . 1 Hacking Detections 90 | . 4 . 9 . . . 10 12 4 . . . . 14 . . . . . 7 6 3 . 6 4 . 1 . . 2 8 Full Trace Events 4 | . . . . . . . . 1 1 . . . . 1 . . . . . . . 1 . . . . . . . . . Feedback Events 1 | . . . . . . . . . 1 . . . . . . . . . . . . . . . . . . . . . . Corruption 1 | . . . . . . . . . 1 . . . . . . . . . . . . . . . . . . . . . . Feedback Blocked . | . . . . . . . . . . . . . . . . . . . . . . . . . . . . . . . . Robot Schematics Acquired 6 | . . . . . . . . . . . . 6 . . . . . . . . . . . . . . . . . . . Robots Built 3 | . . . . . . . . . . . . . . . . . . . . . . . . . . . . . . . 3 Matter 285 | . . . . . . . . . . . . . . . . . . . . . . . . . . . . . . . 285 Time 76 | . . . . . . . . . . . . . . . . . . . . . . . . . . . . . . . 76 Total Robot Build Rating 15 | . . . . . . . . . . . . . . . . . . . . . . . . . . . . . . . 15 Part Schematics Acquired 13 | . 1 . . . . . 2 1 . . . 7 . 1 . . . . . . . . . . 1 . . . . . . Parts Built 6 | . . . . . . . . . . . . . . 2 . . . . . 1 . . . . . . . . . 1 2 Matter 1583 | . . . . . . . . . . . . . . 636 . . . . . 102 . . . . 102 . . . . 212 531 Time 565 | . . . . . . . . . . . . . . 338 . . . . . 25 . . . . 17 . . . . 53 132 Total Part Build Rating 30 | . . . . . . . . . . . . . . 12 . . . . . 1 . . . . . . . . . 6 11 Parts Repaired 8 | . . . 2 . . . . 1 . . . . . 2 . . . . . . . . . . . . . . . 3 . Time 294 | . . . 45 . . . . 30 . . . . . 98 . . . . . . . . . . . . . . . 121 . Parts Recycled . | . . . . . . . . . . . . . . . . . . . . . . . . . . . . . . . . Recycled Matter . | . . . . . . . . . . . . . . . . . . . . . . . . . . . . . . . . Retrieved Matter . | . . . . . . . . . . . . . . . . . . . . . . . . . . . . . . . . Retrieved Components 11 | . . . 10 . . . 1 . . . . . . . . . . . . . . . . . . . . . . . . Parts Scanalyzed 1 | . . . . . . . 1 . . . . . . . . . . . . . . . . . . . . . . . . Part Schematics Acquired 1 | . . . . . . . 1 . . . . . . . . . . . . . . . . . . . . . . . . Parts Damaged . | . . . . . . . . . . . . . . . . . . . . . . . . . . . . . . . . Bothacking | -11 -10 -10 -9 -9 -9 -8 -8 -8 -7 -7 -7 -7 -6 -6 -6 -6 -6 -6 -5 -5 -5 -5 -5 -5 -4 -4 -4 -4 -3 -3 -3 ------------ Run | Scr Mat Min Mat Min Exi Min Mat Sto Fac Low Low Dat Pro Fac Low Low Zio Dee Pro Fac Ext Cet Arc Hub Fac Upp Upp War Pro Res Arm Used RIF Installer . | . . . . . . . . . . . . . . . . . . . . . . . . . . . . . . . . Robots Hacked . | . . . . . . . . . . . . . . . . . . . . . . . . . . . . . . . . Non-combat . | . . . . . . . . . . . . . . . . . . . . . . . . . . . . . . . . Combat . | . . . . . . . . . . . . . . . . . . . . . . . . . . . . . . . . Robot Hacks Applied . | . . . . . . . . . . . . . . . . . . . . . . . . . . . . . . . . Relay Couplers Released 4 | . . . . . . . . . . . . . . . . . . . . . . . . . 4 . . . . . . Machine Destruction 4 | . . . . . . . . . . . . . . . . . . . . . . . . . 4 . . . . . . Robots Rewired 19 | . . . . . 2 . . . . . . . . . . . . . . . 9 . . . . . . 5 . . 3 Allies Hacked 4 | . . . . . . . . . . . . . . . . . . . . . . . . . . . . 3 . . 1 Hacks Repelled . | . . . . . . . . . . . . . . . . . . . . . . . . . . . . . . . . Allies | -11 -10 -10 -9 -9 -9 -8 -8 -8 -7 -7 -7 -7 -6 -6 -6 -6 -6 -6 -5 -5 -5 -5 -5 -5 -4 -4 -4 -4 -3 -3 -3 -------- Run | Scr Mat Min Mat Min Exi Min Mat Sto Fac Low Low Dat Pro Fac Low Low Zio Dee Pro Fac Ext Cet Arc Hub Fac Upp Upp War Pro Res Arm Total Allies 38 | . . . . . 2 . . . . . 2 . . 1 . . 7 . . . 10 4 . . . . . 5 . . 7 Largest Group 7 | . . . . . 2 2 . . . . 2 . . 1 . . 7 7 . . 4 5 4 3 1 . . 5 . . 3 Highest-Rated Group 532 | . . . . . 29 29 . . . . 56 . . 26 . . 184 184 . . 233 532 438 282 94 . . 264 . . 126 Highest-Rated Ally 156 | . . . . . 21 21 . . . . 31 . . 26 . . 31 31 . . 156 156 156 94 94 . . 60 . . 42 Total Orders 34 | . . . . . . . . . . . . . . . . . . 30 . . . . . 2 . . . 2 . . . STAY 5 | . . . . . . . . . . . . . . . . . . 2 . . . . . 1 . . . 2 . . . ROAM 1 | . . . . . . . . . . . . . . . . . . 1 . . . . . . . . . . . . . FOLLOW 2 | . . . . . . . . . . . . . . . . . . 1 . . . . . 1 . . . . . . . EXPLORE 5 | . . . . . . . . . . . . . . . . . . 5 . . . . . . . . . . . . . RETURN 21 | . . . . . . . . . . . . . . . . . . 21 . . . . . . . . . . . . . Ally Attacks 372 | . . . . . . 10 . . . . 7 . . . . . . 132 . . 61 44 18 39 9 . . 5 . . 47 Total Damage 8507 | . . . . . . 79 . . . . 89 . . . . . . 1973 . . 1281 1518 776 1543 290 . . 121 . . 837 Kills 65 | . . . . . . . . . . . 1 . . . . . . 19 . . 11 12 2 13 1 . . 2 . . 4 Allies Corrupted 3 | . . . . . . . . . . . . . . . . . . . . . . . . . . . . 2 . . 1 Allies Melted . | . . . . . . . . . . . . . . . . . . . . . . . . . . . . . . . . Intel | -11 -10 -10 -9 -9 -9 -8 -8 -8 -7 -7 -7 -7 -6 -6 -6 -6 -6 -6 -5 -5 -5 -5 -5 -5 -4 -4 -4 -4 -3 -3 -3 ------- Run | Scr Mat Min Mat Min Exi Min Mat Sto Fac Low Low Dat Pro Fac Low Low Zio Dee Pro Fac Ext Cet Arc Hub Fac Upp Upp War Pro Res Arm Robot Analysis Total 18 | . 2 . 2 . . . 3 1 . . . . . 1 . . . . . 1 1 2 . 1 1 . 3 . . . . Derelict Logs Recovered 12 | . . 2 . 1 . . . . . 2 . . 3 . . 1 1 . . . . . . . . . 2 . . . . Drone Launches 32 | . . . . . . . . . . . . . . . . . . 32 . . . . . . . . . . . . . Drone Recoveries 30 | . . . . . . . . . . . . . . . . . . 30 . . . . . . . . . . . . . Exploration | -11 -10 -10 -9 -9 -9 -8 -8 -8 -7 -7 -7 -7 -6 -6 -6 -6 -6 -6 -5 -5 -5 -5 -5 -5 -4 -4 -4 -4 -3 -3 -3 ------------- Run | Scr Mat Min Mat Min Exi Min Mat Sto Fac Low Low Dat Pro Fac Low Low Zio Dee Pro Fac Ext Cet Arc Hub Fac Upp Upp War Pro Res Arm Turns Passed 43291 | 55 1062 791 2175 1223 1531 1140 1491 2238 346 1961 1756 557 1452 3381 1226 842 1694 3328 599 1463 2172 581 277 730 846 1006 972 1568 580 782 3466 Spaces Moved 20097 | 31 519 362 926 656 824 579 618 788 170 1034 875 264 713 1339 687 452 1037 1346 320 697 991 236 114 361 310 437 535 904 356 306 1310 Core 9 | 4 . . . . . . . . . . . . . 2 . . . . . . . . . . . . . . . . 3 Treads 13615 | 27 519 362 926 656 824 579 618 788 170 1034 875 264 713 1329 687 452 1037 1089 . . . . . . . . . . . . 666 Legs 6473 | . . . . . . . . . . . . . . 8 . . . 257 320 697 991 236 114 361 310 437 535 904 356 306 641 Wheels . | . . . . . . . . . . . . . . . . . . . . . . . . . . . . . . . . Hover . | . . . . . . . . . . . . . . . . . . . . . . . . . . . . . . . . Flight . | . . . . . . . . . . . . . . . . . . . . . . . . . . . . . . . . Fastest Speed 50 | 50 160 160 160 180 180 180 180 185 185 185 185 190 190 160 160 160 160 160 169 169 163 163 163 163 163 160 163 143 143 110 120 Average Speed 174 | 145 176 179 179 180 180 180 182 185 185 185 188 190 190 184 166 165 160 175 169 169 169 166 163 163 167 162 167 165 143 155 164 Slowest Speed 950 | 160 180 180 180 180 180 180 185 230 185 185 190 230 190 950 180 180 160 190 169 169 190 185 163 170 170 163 170 170 143 156 350 Overloaded Moves . | . . . . . . . . . . . . . . . . . . . . . . . . . . . . . . . . Propulsion Burnouts . | . . . . . . . . . . . . . . . . . . . . . . . . . . . . . . . . Robots Hopped . | . . . . . . . . . . . . . . . . . . . . . . . . . . . . . . . . Cave-ins Triggered . | . . . . . . . . . . . . . . . . . . . . . . . . . . . . . . . . Exploration Rate (%) 65 | 3 71 75 74 97 94 96 48 95 6 98 80 77 73 35 75 65 83 86 52 22 87 84 86 48 9 66 65 96 53 8 79 Regions Visited 31 Branch Regions 23 Pre-discovered Areas 9 | . 1 1 . . 1 . 1 . . . 2 1 . . . . 2 . . . . . . . . . . . . . . Known Exits Taken 26 | . 1 . 1 . . . 1 1 1 1 1 1 1 1 1 1 1 1 1 1 1 1 1 1 1 1 1 1 1 1 . Unknown Exits Taken 5 | 1 . 1 . 1 1 1 . . . . . . . . . . . . . . . . . . . . . . . . . Scrap Searched 25 | . . 1 . 2 . 1 . . . 7 . . 2 . 2 2 3 . . . . . . . . 3 1 . 1 . . Spaces Dug 163 | . . . . . . . 1 6 . . 9 8 15 2 44 16 . . . 18 3 . . 10 2 . 6 6 9 . 8 Terrain Destroyed 1616 | . 14 76 28 69 . 53 1 19 . 5 56 8 49 78 78 46 . 29 8 49 27 5 5 372 60 12 79 9 23 19 339 Melee 18 | . . . . . . . 1 6 . . . 8 1 2 . . . . . . . . . . . . . . . . . Projectile 282 | . . . . . . . . . . . . . 1 . . 1 . . 8 49 27 1 5 33 29 12 14 9 23 7 63 AOE 1316 | . 14 76 28 69 . 53 . 13 . 5 56 . 47 76 78 45 . 29 . . . 4 . 339 31 . 65 . . 12 276 Terrain Rammed . | . . . . . . . . . . . . . . . . . . . . . . . . . . . . . . . . Walls Destroyed . | . . . . . . . . . . . . . . . . . . . . . . . . . . . . . . . . Machines Disabled . | . . . . . . . . . . . . . . . . . . . . . . . . . . . . . . . . Actions | -11 -10 -10 -9 -9 -9 -8 -8 -8 -7 -7 -7 -7 -6 -6 -6 -6 -6 -6 -5 -5 -5 -5 -5 -5 -4 -4 -4 -4 -3 -3 -3 --------- Run | Scr Mat Min Mat Min Exi Min Mat Sto Fac Low Low Dat Pro Fac Low Low Zio Dee Pro Fac Ext Cet Arc Hub Fac Upp Upp War Pro Res Arm Total 26197 | 38 606 442 1271 687 874 631 843 1430 196 1066 936 304 770 1971 728 507 1069 2278 352 886 1393 395 192 436 497 702 575 958 383 584 2197 Wait 3320 | . 29 24 130 14 . 10 47 428 15 . 1 . 15 292 3 6 4 759 6 109 209 129 68 20 80 229 13 . . 230 450 Move 20066 | 30 518 361 925 655 823 578 617 787 169 1033 874 263 712 1338 686 451 1036 1345 319 696 990 235 113 360 309 436 534 903 355 305 1310 Hop . | . . . . . . . . . . . . . . . . . . . . . . . . . . . . . . . . Pick Up 220 | 2 14 5 30 1 2 1 18 5 . 2 5 4 2 26 4 4 4 34 2 6 4 1 1 3 4 5 3 3 . 8 17 Fast Attach 165 | 6 1 . 14 2 . . 7 12 . 2 . 3 1 26 2 1 7 17 2 . 4 1 . 1 4 1 . 6 . 8 37 Attach 78 | . 1 5 8 . . 1 3 3 4 1 1 . 2 19 2 7 3 5 2 . 1 1 . . 1 2 . . . . 6 Detach 85 | . . . 2 . . . 3 4 . 1 . 2 . 1 . 4 4 4 3 4 8 2 1 1 4 5 3 7 2 7 13 Swap 340 | . 5 3 27 2 3 9 28 44 2 11 34 4 15 47 5 5 3 8 3 18 9 4 1 15 7 . 1 1 2 1 23 Drop 278 | . 3 2 43 3 4 . 17 21 1 4 1 7 . 25 4 4 5 54 3 8 3 2 1 4 4 4 3 6 . 8 34 Fire 1316 | . 30 36 88 5 . 19 96 102 4 12 20 . 22 168 19 25 3 45 12 44 48 20 6 31 84 20 18 11 24 17 287 Melee 60 | . . . . . . . 1 9 . . . 16 1 20 3 . . . . . 4 . . . . . . 2 . . 4 Ram . | . . . . . . . . . . . . . . . . . . . . . . . . . . . . . . . . Kick 3 | . . . . . . . . . . . . . . . . . . . . 1 . . 1 1 . . . . . . . Crush 64 | . 5 6 4 5 . 13 6 15 1 . . . . 9 . . . . . . . . . . . . . . . . . Escape Stasis 2 | . . . . . . . . . . . . . . . . . . . . . . . . . . . . . . . 2 Rewire 188 | . . . . . 42 . . . . . . . . . . . . . . . 113 . . . . . . 19 . . 14 Trap 5 | . . . . . . . . . . . . 5 . . . . . . . . . . . . . . . . . . . Miscellaneous 7 | . . . . . . . . . . . . . . . . . . 7 . . . . . . . . . . . . . Route ------- -11/Scrapyard -10/Materials (discovered 4 exits: *Mat x2 / *Min x2) -10/Mines (discovered 2 exits: *Mat x2) -9/Materials (discovered 3 exits: *Mat x2 / *Min) -9/Mines (discovered 3 exits: *Mat x2 / *Exi) -9/Exiles (discovered 2 exits: [*Min x2]) -8/Mines (discovered 2 exits: *Mat x2) -8/Materials (discovered 2 exits: *Fac / *Sto) -8/Storage -7/Factory (discovered 2 exits: *Low x2) -7/Lower Caves -7/Lower Caves (discovered 2 exits: *Fac / *Dat) -7/Data Miner -6/Proximity Caves -6/Factory (discovered 4 exits: *Fac x2 / *Low x2) -6/Lower Caves -6/Lower Caves (discovered 2 exits: *Fac / *Zio) -6/Zion -6/Deep Caves -5/Proximity Caves -5/Factory -5/Extension (discovered 3 exits: *Fac x2 / *Cet) -5/Cetus (discovered 2 exits: *Fac / *Arc) -5/Archives (discovered 3 exits: *Fac / *Hub x2) -5/Hub_04(d) (discovered 3 exits: *Fac x3) -4/Factory -4/Upper Caves -4/Upper Caves -4/Warlord -3/Proximity Caves -3/Research -3/Armory (discovered 2 exits: *Res x2) History --------- Turn | Location | Event 13 | -11/Scrapyard | Discovered new exit (range 16) 56 | -11/Scrapyard | Entered Materials 275 | -10/Materials | Discovered new exit (range 6) 301 | -10/Materials | Build established: Mutant 423 | -10/Materials | Discovered new exit (range 8) 665 | -10/Materials | Discovered new exit (range 10) 846 | -10/Materials | Identified exit to Mines 1118 | -10/Materials | Entered Mines 1226 | -10/Mines | Assembled infested the area 1231 | -10/Mines | Assisted by a Guerilla fighting off Assembled 1261 | -10/Mines | Core integrity fell below 50% 1290 | -10/Mines | Lost 4 parts (2n2w) 1314 | -10/Mines | Destroyed 8 combat bots 1349 | -10/Mines | Received a Rocket Launcher from a helpful Derelict 1478 | -10/Mines | Learned Materials garrison access intel 1478 | -10/Mines | Discovered new exit (range 14) 1487 | -10/Mines | Discovered new exit (range 14) 1637 | -10/Mines | Learned location of Storage (-8) 1909 | -10/Mines | Entered Materials 1909 | -9/Materials | Evolved 2 slots: Utility x1, Weapon x1 1971 | -9/Materials | Repaired Lgt. Assault Rifle 2528 | -9/Materials | Build established: Scavenger-Tank 2612 | -9/Materials | Lost 3 parts (1p2w) 2865 | -9/Materials | Discovered new exit (range 7) 2971 | -9/Materials | Repaired Shock Rifle 3082 | -9/Materials | Core integrity fell below 50% 3279 | -9/Materials | Build established: Gunner 3574 | -9/Materials | Identified exit to Mines 3588 | -9/Materials | Discovered new exit (range 16) 4084 | -9/Materials | Entered Mines 4085 | -9/Mines | Met a Derelict bent on vengeance 4122 | -9/Mines | Learned 4 Materials zone layouts 4233 | -9/Mines | A weapon hastily lodged in a ceiling crevice suddenly fell to the ground 4262 | -9/Mines | Build established: Tank 4363 | -9/Mines | Discovered new exit (range 5) 4448 | -9/Mines | Found a damaged Exp. Sensor Array with a note attached 4452 | -9/Mines | Found Prototype Device 4547 | -9/Mines | Discovered new exit (range 5) 4988 | -9/Mines | Deemed a non-threat by the Exiles lab entrance 4988 | -9/Mines | Discovered new exit (range 5) 5307 | -9/Mines | Entered Exiles 5307 | -9/Exiles | Found Exiles lab destroyed 5331 | -9/Exiles | Discovered new exit (range 15) 5535 | -9/Exiles | Opened EX-Vault 5550 | -9/Exiles | Found Longsword +1 6066 | -9/Exiles | Learned location of Zion (-6) 6819 | -9/Exiles | Discovered new exit (range 14) 6838 | -9/Exiles | Entered Mines 6838 | -8/Mines | Accompanied by 2 allies 6838 | -8/Mines | Discovered new exit (range 9) 6864 | -8/Mines | Identified Exp. Sensor Array 7402 | -8/Mines | Build established: Hauler-Gunner 7526 | -8/Mines | Discovered new exit (range 13) 7978 | -8/Mines | Entered Materials 7978 | -8/Materials | Evolved 2 slots: Utility x2 7979 | -8/Materials | Identified exit to Storage 7980 | -8/Materials | Loaded intel: 1 garrison access location 8561 | -8/Materials | Discovered new exit (range 16) 8740 | -8/Materials | Identified exit to Factory 9049 | -8/Materials | Central database locked down 9469 | -8/Materials | Entered Storage 10003 | -8/Storage | Build established: Hauler-Tank 10786 | -8/Storage | Garrison activated, responded to threat 10882 | -8/Storage | Found Prototype Launcher 10882 | -8/Storage | Identified Scatter Rocket Array 11037 | -8/Storage | Repaired Enh. Autogun 11551 | -8/Storage | Garrison activated, responded to threat 11581 | -8/Storage | Discovered exit to Factory (range 11) 11707 | -8/Storage | Entered Factory 11707 | -7/Factory | Evolved 2 slots: Utility x2 11849 | -7/Factory | Identified exit to Lower Caves 12053 | -7/Factory | Entered Lower Caves 12055 | -7/Lower Caves | Attracted the attention of an 0b10 checkpoint 12170 | -7/Lower Caves | Learned Factory stockpile data 12240 | -7/Lower Caves | Destroyed 7 combat bots 12403 | -7/Lower Caves | Build established: Hauler-Skirmisher 13528 | -7/Lower Caves | Learned 4 Factory zone layouts 13759 | -7/Lower Caves | Discovered new exit (range 5) 13766 | -7/Lower Caves | Identified exit to Lower Caves 14014 | -7/Lower Caves | Entered another Lower Caves area 14057 | -7/Lower Caves | Discovered new exit (range 13) 14077 | -7/Lower Caves | Identified exit to Factory 14761 | -7/Lower Caves | Attracted the attention of an 0b10 checkpoint 15117 | -7/Lower Caves | A Commander dispatched an escort 15141 | -7/Lower Caves | Learned location of 1 exit from Factory 15141 | -7/Lower Caves | Learned Extension emergency access door positions 15141 | -7/Lower Caves | Learned Factory stockpile data 15141 | -7/Lower Caves | Learned Factory garrison access intel 15141 | -7/Lower Caves | Learned Factory terminal intel 15694 | -7/Lower Caves | Discovered new exit (range 7) 15765 | -7/Lower Caves | Identified exit to Data Miner 15770 | -7/Lower Caves | Entered Data Miner 15770 | -7/Data Miner | Accompanied by 1 ally 15770 | -7/Data Miner | Discovered new exit (range 6) 15771 | -7/Data Miner | Commander's escort returned to base 15782 | -7/Data Miner | Identified exit to Proximity Caves 15807 | -7/Data Miner | Met Data Miner 15839 | -7/Data Miner | Learned location of Section 7 (-2) 15839 | -7/Data Miner | Acquired the access code to Warlord's prototype stash 15871 | -7/Data Miner | Received God Mode back door access code from Data Miner 16167 | -7/Data Miner | Destroyed Data Miner 16169 | -7/Data Miner | Found Prototype Hackware 16170 | -7/Data Miner | Data Conduit disabled 16181 | -7/Data Miner | Build established: Hauler-Mutant 16233 | -7/Data Miner | Found Prototype Device 16233 | -7/Data Miner | Identified Exp. Thermal Shield 16327 | -7/Data Miner | Entered Proximity Caves 16482 | -6/Proximity Caves | Spotted B-75 Beast 16519 | -6/Proximity Caves | Build established: Hauler-Skirmisher 16742 | -6/Proximity Caves | Learned location of 1 exit from Lower Caves 16778 | -6/Proximity Caves | Learned Factory emergency access door positions 17257 | -6/Proximity Caves | Lost 3 parts (1n1u1w) 17779 | -6/Proximity Caves | Entered Factory 17779 | -6/Factory | Evolved 2 slots: Power x1, Propulsion x1 17780 | -6/Factory | Identified exit to Lower Caves 17784 | -6/Factory | Loaded intel: 19 terminal locations 17785 | -6/Factory | Loaded intel: 4 garrison access locations 18019 | -6/Factory | Identified System Mapper 18156 | -6/Factory | Fabricated Combat Drone Bay? 18275 | -6/Factory | Fabricated Combat Drone Bay (x1) 18478 | -6/Factory | Repaired Arm. Treads 18540 | -6/Factory | Repaired Hvy. EM Shotgun 18654 | -6/Factory | P-60 Hacker assimilated allied Administrator 5a 18669 | -6/Factory | Local fabrication network quarantined 19128 | -6/Factory | Discovered new exit (range 7) 19138 | -6/Factory | Identified exit to Factory 19400 | -6/Factory | Discovered exit to Factory (range 15) 19822 | -6/Factory | Garrison activated, responded to threat 19879 | -6/Factory | First assault squad dispatched 20070 | -6/Factory | Core integrity fell below 50% 20085 | -6/Factory | Lost 21 parts (3p5n4u9w) 20143 | -6/Factory | Garrison activated, responded to threat 20632 | -6/Factory | Destroyed 7 combat bots 20668 | -6/Factory | Lost 7 parts (2n2u3w) 21160 | -6/Factory | Entered Lower Caves 21161 | -6/Lower Caves | Identified exit to Lower Caves 21473 | -6/Lower Caves | Build established: Hauler-Mutant 21622 | -6/Lower Caves | Encountered a Warlord checkpoint 22386 | -6/Lower Caves | Entered another Lower Caves area 22388 | -6/Lower Caves | Core integrity fell below 20% 22489 | -6/Lower Caves | Discovered exit to Factory (range 10) 22591 | -6/Lower Caves | System corruption reached 10% 22627 | -6/Lower Caves | Lost 3 parts (1p1n1w) 22860 | -6/Lower Caves | Discovered new exit (range 16) 22884 | -6/Lower Caves | Identified exit to Zion 22890 | -6/Lower Caves | Encountered a Warlord checkpoint 23228 | -6/Lower Caves | Entered Zion 23256 | -6/Zion | Gained Derelict followers 23356 | -6/Zion | System corruption cleaned by Quarantine Array 23393 | -6/Zion | Given the Hacking Drone Bay 23395 | -6/Zion | Found Prototype Device 23817 | -6/Zion | Received a hallucinogenic algorithm 24002 | -6/Zion | Gained Derelict followers 24180 | -6/Zion | Given A8's code to call for help 24243 | -6/Zion | Found CR-A16's Pointy Stick 24244 | -6/Zion | Identified Hacking Drone Bay 24430 | -6/Zion | Found Prototype Hackware 24430 | -6/Zion | Identified Exp. Hacking Suite 24433 | -6/Zion | Found Prototype Processor 24433 | -6/Zion | Identified Exp. Armor Integrity Analyzer 24440 | -6/Zion | Found Prototype Processor 24440 | -6/Zion | Identified Exp. Targeting Computer 24909 | -6/Zion | Discovered new exit (range 3) 24909 | -6/Zion | Saw the warning signs outside the Deep Caves entrance 24914 | -6/Zion | Identified exit to Deep Caves 24922 | -6/Zion | Entered Deep Caves 24922 | -6/Deep Caves | Accompanied by 7 allies 25009 | -6/Deep Caves | Z-Facility disabled 25281 | -6/Deep Caves | Found Prototype Protection 25281 | -6/Deep Caves | Identified Zio. Weapon Casing 25433 | -6/Deep Caves | Attacked by Z-Imprinter 25448 | -6/Deep Caves | Allies destroyed Z-Imprinter 25478 | -6/Deep Caves | Found Zio. Weapon Casing 25543 | -6/Deep Caves | Found Zio. Weapon Casing 25550 | -6/Deep Caves | Found Zio. Weapon Casing 25705 | -6/Deep Caves | Found Zio. Weapon Casing 25712 | -6/Deep Caves | Found Zio. Weapon Casing 26071 | -6/Deep Caves | Discovered new exit (range 6) 26078 | -6/Deep Caves | Identified exit to Proximity Caves 26294 | -6/Deep Caves | Found Zio. Weapon Casing 26546 | -6/Deep Caves | Build established: Scavenger-Mutant 27098 | -6/Deep Caves | Spotted as-33227 27133 | -6/Deep Caves | Destroyed as-33227 27226 | -6/Deep Caves | Exposed GOLEM chamber 27231 | -6/Deep Caves | Found GOLEM Unit 27248 | -6/Deep Caves | Found GOLEM Unit 27254 | -6/Deep Caves | Found GOLEM Unit 27261 | -6/Deep Caves | Found GOLEM Unit 27692 | -6/Deep Caves | Build established: Golem 28250 | -6/Deep Caves | Entered Proximity Caves 28610 | -5/Proximity Caves | Build established: Hauler-Golem 28822 | -5/Proximity Caves | Discovered exit to Factory (range 15) 28849 | -5/Proximity Caves | Entered Factory 28849 | -5/Factory | Evolved 2 slots: Utility x2 28850 | -5/Factory | Identified exit to Extension 29405 | -5/Factory | Fabricated Lrg. Storage Unit (x1) 30312 | -5/Factory | Entered Extension 31769 | -5/Extension | Spotted B-75 Beast 31782 | -5/Extension | Spotted B-75 Beast 31803 | -5/Extension | Revealed the true nature of CR-A16's Pointy Stick 31807 | -5/Extension | Destroyed B-75 Beast 31817 | -5/Extension | Destroyed B-75 Beast 31856 | -5/Extension | Lost 6 parts (1n2u3w) 31915 | -5/Extension | Discovered new exit (range 3) 31916 | -5/Extension | Identified exit to Factory 31966 | -5/Extension | Rescued A7 32469 | -5/Extension | Discovered exit to Factory (range 10) 32471 | -5/Extension | Discovered new exit (range 6) 32482 | -5/Extension | Identified exit to Cetus 32484 | -5/Extension | Entered Cetus 32484 | -5/Cetus | Accompanied by 3 allies (A7) 32489 | -5/Cetus | Acquired a Cetus Manufacturing Module code from A7 32512 | -5/Cetus | Spotted Cetus Guard 32512 | -5/Cetus | Spotted Cetus Guard 32514 | -5/Cetus | Spotted Cetus Guard 32520 | -5/Cetus | Allies destroyed Cetus Guard 32521 | -5/Cetus | Destroyed Cetus Guard 32521 | -5/Cetus | Spotted Cetus Guard 32525 | -5/Cetus | Allies destroyed Cetus Guard 32529 | -5/Cetus | Allies destroyed Cetus Guard 32533 | -5/Cetus | Build established: Golem 32563 | -5/Cetus | Destroyed 7 combat bots 32600 | -5/Cetus | Discovered exit to Factory (range 15) 32693 | -5/Cetus | Started Cetus Manufacturing Module 32707 | -5/Cetus | Escorted A7 to Cetus Mainframe 32718 | -5/Cetus | Manufactured an Enhanced Grunt 32743 | -5/Cetus | Manufactured an Enhanced Grunt 32768 | -5/Cetus | Manufactured an Enhanced Grunt 32793 | -5/Cetus | Manufactured an Enhanced Grunt 32811 | -5/Cetus | Cetus Manufacturing Module disabled 32875 | -5/Cetus | Found a strange terminal 33032 | -5/Cetus | Discovered new exit (range 15) 33055 | -5/Cetus | Identified exit to Archives 33065 | -5/Cetus | Entered Archives 33065 | -5/Archives | Accompanied by 4 allies (A7) 33070 | -5/Archives | Received a hacking code to weaken MAIN.C 33122 | -5/Archives | Discovered new exit (range 16) 33127 | -5/Archives | Unable to access archive contents 33153 | -5/Archives | Unable to access archive contents 33160 | -5/Archives | Discovered exit to Factory (range 16) 33183 | -5/Archives | Discovered new exit (range 15) 33209 | -5/Archives | Identified exit to Hub_04(d) 33342 | -5/Archives | Entered Hub_04(d) 33342 | -5/Hub_04(d) | Accompanied by 3 allies 33502 | -5/Hub_04(d) | Discovered exit to Factory (range 9) 33737 | -5/Hub_04(d) | Discovered exit to Factory (range 8) 33796 | -5/Hub_04(d) | Discovered exit to Factory (range 12) 34054 | -5/Hub_04(d) | Network Hub disabled 34063 | -5/Hub_04(d) | Network Hub disabled 34072 | -5/Hub_04(d) | Entered Factory 34072 | -4/Factory | Accompanied by 1 ally 34072 | -4/Factory | Evolved 2 slots: Utility x2 34280 | -4/Factory | Discovered new exit (range 4) 34292 | -4/Factory | Identified exit to Upper Caves 34355 | -4/Factory | First assault squad dispatched 34476 | -4/Factory | Build established: Hacker-Golem 34477 | -4/Factory | Destroyed 13 combat bots 34740 | -4/Factory | Garrison activated, responded to threat 34781 | -4/Factory | High security lockdown imminent 34791 | -4/Factory | Local fabrication network quarantined 34833 | -4/Factory | Destroyed 14 combat bots 34861 | -4/Factory | High security lockdown engaged 34918 | -4/Factory | Entered Upper Caves 34966 | -4/Upper Caves | Lost 4 parts (1n2u1w) 35270 | -4/Upper Caves | Ambushed by wild Derelicts 35594 | -4/Upper Caves | Encountered a Warlord checkpoint 35906 | -4/Upper Caves | Discovered new exit (range 7) 35914 | -4/Upper Caves | Identified exit to Upper Caves 35924 | -4/Upper Caves | Entered another Upper Caves area 36228 | -4/Upper Caves | Identified exit to Warlord 36289 | -4/Upper Caves | Learned Research garrison access intel 36896 | -4/Upper Caves | Entered Warlord 37015 | -4/Warlord | Discovered new exit (range 8) 37026 | -4/Warlord | Identified exit to Proximity Caves 37123 | -4/Warlord | System corruption cleaned by Quarantine Array 37627 | -4/Warlord | Build established: Commander-Golem 37782 | -4/Warlord | Warlord's base attacked by MAIN.C 38064 | -4/Warlord | Found Prototype Energy Gun 38064 | -4/Warlord | Identified Vortex Rifle 38071 | -4/Warlord | Found Prototype Energy Gun 38071 | -4/Warlord | Identified Vortex Rail 38132 | -4/Warlord | Warlord forces counterattacked 38208 | -4/Warlord | Met Warlord 38225 | -4/Warlord | Opened Warlord's prototype stash 38249 | -4/Warlord | Found Prototype Reactor 38249 | -4/Warlord | Identified Vortex Chain Reactor 38355 | -4/Warlord | Spotted B-86 Titan 38357 | -4/Warlord | Spotted B-90 Cyclops 38361 | -4/Warlord | Destroyed B-90 Cyclops 38369 | -4/Warlord | Destroyed B-86 Titan 38425 | -4/Warlord | Opened side exit 38464 | -4/Warlord | Entered Proximity Caves 38765 | -3/Proximity Caves | Build established: Hacker-Golem 39034 | -3/Proximity Caves | Discovered new exit (range 9) 39043 | -3/Proximity Caves | Identified exit to Research 39044 | -3/Proximity Caves | Entered Research 39044 | -3/Research | Evolved 2 slots: Utility x2 39045 | -3/Research | Loaded intel: 3 garrison access locations 39109 | -3/Research | Repaired Lrg. Storage Unit 39189 | -3/Research | Repaired Centrium Medium Armor Plating 39245 | -3/Research | Repaired Exp. Myomer Leg 39591 | -3/Research | Fabricated Hvy. Shock Bomb Launcher (x1) 39722 | -3/Research | Discovered new exit (range 15) 39747 | -3/Research | Identified exit to Armory 39826 | -3/Research | Entered Armory 40052 | -3/Armory | Fabricated Exp. Sensor Array? 40576 | -3/Armory | Lost 9 parts (1p5u3w) 40602 | -3/Armory | Destroyed 11 combat bots 41109 | -3/Armory | System corruption reached 10% 41166 | -3/Armory | Lost 3 parts (3u) 41247 | -3/Armory | Lost 3 parts (2n1w) 41367 | -3/Armory | Fabricated Combat Drone Bay (x1) 41740 | -3/Armory | Fabricated G-50 Soldier (x3) 41826 | -3/Armory | First assault squad dispatched 42226 | -3/Armory | Discovered new exit (range 5) 42234 | -3/Armory | Identified exit to Research 42236 | -3/Armory | Destroyed 8 combat bots 42355 | -3/Armory | Found Fusion Bomb Launcher 42535 | -3/Armory | Found Fusion Bomb Launcher 42616 | -3/Armory | Found Prototype Processor 42616 | -3/Armory | Identified Exp. Melee Analysis Suite 42623 | -3/Armory | Found Prototype Device 42623 | -3/Armory | Identified Adv. Kinecellerator 42708 | -3/Armory | Spotted B-86 Titan 42741 | -3/Armory | Destroyed B-86 Titan 42998 | -3/Armory | Discovered exit to Research (range 19) 43061 | -3/Armory | Found Unknown Protection 43061 | -3/Armory | Identified Hvy. Insulated Plating 43082 | -3/Armory | Build established: Scavenger-Mutant 43121 | -3/Armory | High security lockdown imminent 43142 | -3/Armory | Destroyed 7 combat bots 43201 | -3/Armory | High security lockdown engaged 43210 | -3/Armory | System corruption reached 30% 43221 | -3/Armory | Core integrity fell below 50% 43259 | -3/Armory | Core integrity fell below 20% 43262 | -3/Armory | Destroyed 14 combat bots 43292 | -3/Armory | Destroyed by G-67 Veteran with Electrolaser Last Messages --------------- 43258_ Identified Flexi-carbon Leg. 43261_ System corrupted: Substantial component data lost. 43263_ The unstable cave ceiling collapses. 43267_ G-67 Veteran crushed by falling debris. 43267_ The unstable cave ceiling collapses. 43271_ System corrupted: CR-A16's Behemoth Slayer targeting data glitched. 43271_ G-67 Veteran suffers critical hit. 43271_ Destroyed Unknown Energy Gun. 43272_ The unstable cave ceiling collapses. 43276_ System corrupted: IFF burst signal emitted. 43276_ Acquired Unknown Reactor. 43276_ Identified Lgt. Antimatter Reactor. 43277_ Lgt. Antimatter Reactor destroyed. 43283_ Acquired 11 matter. 43284_ System corrupted: CR-A16's Behemoth Slayer targeting data glitched. 43286_ Myomer Leg destroyed. 43286_ Lrg. Storage Unit destroyed. 43288_ Flexi-carbon Leg destroyed. 43291_ System corrupted: Matter fused (-8). 43291_ The unstable cave ceiling collapses. Map ----- +----------------------------------------------------+ | #####""T""#?????????????? | | #"" ""############+##### | | ### | | ??# ^ [!= | | ??# """"""" =%[ | | ### ^ ^ """"""" %% | | #!%] """"""" ###/###""""""## | | #[!= #= ]## | | ### " """ = ###########/ | | ??# F" # """ #?????# | | ??# """" # """ ""T"" #?????# !!! | | ??############# # """"" #?????# !!! | | ??# ## # # # ######+################?????# | | ??# #??!! ??? #????????????????###### | | ??# # # #?!! """ #?????????????????????? | | ### ### # #?!! """ #?????????????????????? | | = # #? """ #?????????????????????? | | #?? """ #?????????????????????? | | ###### * # #?? """ #?????????????????????? | | ##### # # #??? #?????????????????????? | | # %## #??? ###???????????????????? | | ||| # ##### + # ##??????????????????? | | ||| [% % ##?????????????????? | | |||= # %"% #?????????????????? | | [%* # "##### ####g# ##????????????????? | | ########## ### || [ [@ #????????????????? | | ?#! /! # #?#= |= # # ## #????????????????? | | ?# !! + #?# |= ! # # # #????????????????? | | ?#] !! = # #?#= % # # #????????????????? | | ########## ###### # g # #????????????????? | | ""T"""#### ! # # #????????????????? | | # #????????????????? | | ## ### = # ##????????????????? | | # = #! [# #?????????????????? | | != # % # #?????????????????? | | ! = # # != == #????????????????? | | != = # !%[ ! ##????????????????? | | =%[=# # # #?????????????????? | | #[[ =%= ##?????????????????? | | [ #%! = "#??????????????????? | | ####### %== # # ##??????????????????? | | ????## % # #???????????????????? | | ?????## #< # # #???????????????????? | | ??????#### # ########???????????????????? | | ?????????#### # #??????????????????????????? | | ????????????# # #??????????????????????????? | | ????????????##### ## ???????????????????????????? | | ??????????????########???????????????????????????? | | ?????????????????????????????????????????????????? | | ?????????????????????????????????????????????????? | +----------------------------------------------------+ Best States ------------- Heat Dissipation 91 Energy Generation 55 Energy Capacity 1700 Matter Stores 300 Matter Capacity 300 Sight Range 20 Robot Scan Range 30 Terrain Scan Density 10 Additional Mass Support 20 Armor Coverage 1200 Resistance: KI 15 Resistance: TH 30 Resistance: EX 15 Resistance: EM 30 Resistance: I 15 Resistance: S 15 Resistance: P 15 Weapon Shielding 100 Thermal Conversion 90 Phase Shifting 8 Evasion (%) 48 Targeting Accuracy 14 Core Analysis 8 Recoil Reduction 3 Matter Filtering 50 Offensive Hacking 20 Item Schematics ----------------- Lrg. Storage Unit | -10/Materials | Hacked Imp. Treads | -8/Materials | Hacked Enh. Autogun | -8/Materials | Scanalyzed EMP Blaster | -8/Storage | Hacked Combat Drone Bay | -7/Data Miner | Free Lgt. Regenerative Plating | -7/Data Miner | Free Exp. Flexi-carbon Leg | -7/Data Miner | Free Cmb. Gravmag System | -7/Data Miner | Free Triangulator | -7/Data Miner | Free Exp. Terrain Scanner | -7/Data Miner | Free Plasma Sword | -7/Data Miner | Free Hvy. Shock Bomb Launcher | -6/Factory | Hacked Exp. Sensor Array | -4/Factory | Hacked Robot Schematics ------------------ S-27 Virus | -7/Data Miner | Free G-50 Soldier | -7/Data Miner | Free L-41 Fighter | -7/Data Miner | Free P-70 Sage | -7/Data Miner | Free I-47 Archangel | -7/Data Miner | Free I-36 Angel | -7/Data Miner | Free Fabricated ------------ Combat Drone Bay | x1 | -6/Factory Combat Drone Bay | x1 | -6/Factory Lrg. Storage Unit | x1 | -5/Factory Hvy. Shock Bomb Launcher | x1 | -3/Research Exp. Sensor Array | x1 | -3/Armory Combat Drone Bay | x1 | -3/Armory G-50 Soldier | x3 | -3/Armory Alien Tech Used ----------------- None Achievements -------------- Giant Slayer Shocking Conclusion Challenges ------------ None Game ------ Seed ModifiedAluminumFirepult Manual? 0 Play Time 05:56:44 Cumulative 93.0 hours Start 2020.10.16 @ 16:54:31 End 2020.10.17 @ 16:18:39 Sessions 3 Manual Loads 0 Difficulty Rogue Special Mode None Game No. 31 Rogue 16 Adventurer 15 Explorer 0 Win Type - Total 1 Types 0/0/0/1/0/0/0/0/0 Lore% 62 Gallery% 66 Achievement% 55 Wizard Run 0 Options --------- ASCII 0 Keyboard 0 Movement Numpad Keybinds 0 Fullscreen 1 Font 18/SmallcapsGlow Map View 76x50 Tactical HUD 1 Map Filters NONE Filters NONE Steam 1 RUN: 2942bee7-3cd9-4db7-9cf5-c807f4aa6a93